{"text_format":"2","workbook":"xlsx","n_sheets":2,"sheets":["GTAS","TASCC"],"not_rendered":{"charts":0,"images":0,"macros":0,"external_links":0,"defined_names":1,"comments":0,"pivot_tables":0},"unopened":[],"bounds":{"document_bytes":16777216,"sheet_cells":100000,"run_cost":"one","rows_first":2000,"rows_last":500,"rows_between":2000,"halvings":0,"cell_chars":16384,"cell_head_chars":4096},"cells_cut":0,"cells_raw":0,"read":"whole","date_system":"1900"}

{"sheet":"GTAS","index":0,"n_rows":35,"n_cols":6,"rows_kept":35,"cut":false,"hidden":false,"merged":[]}
["List of exporters registered to export barley to China"]
["Exporters and elevators who are considered by Defra meet the relevant Chinese inspection and quarantine conditions for exporting barley to China by holding certification to the appropriate trade assurance scheme"]
["Correct at 23 March 2019"]
["To check the latest status of a registration please refer to: ",null,"gafta.com/GTAS-Database"]
["Scheme Name","Business Name","Scheme Reg No","Address","Postcode","Country Name"]
["GTAS Analysis and Testing","Salamon And Seaber Ltd","GTAS001","68 Hanbury Street\nLondon","E1 5JL","United Kingdom"]
["GTAS Analysis and Testing","Sciantec Analytical Services","GTAS003","A Division of Cawood Scientific Ltd\nCoopers Bridge\nBraziers Lane\nBracknell\nBerkshire","RG42 6NS","United Kingdom"]
["GTAS Analysis and Testing","Live Lab","GTAS018","Manton Road\nBrooke\nOakham\nLeicestershire","LE15 8DF","United Kingdom"]
["GTAS Analysis and Testing","Saxon Agriculture Ltd","GTAS061","Acorn House\nTurbine Way\nSwaffham\nNorfolk","PE37 7XN","United Kingdom"]
["GTAS Analysis and Testing","Tendring Lab Services","GTAS362","Round Cottage\nCrow Lane\nTendring","CO16 9AW","United Kingdom"]
["GTAS Analysis and Testing","Acorn Arable Limited","GTAS505","Unit 4\nHartlebury Trading Estate \nHartlebury\nKidderminster\nWorcestershire","DY10 4JB","United Kingdom"]
["GTAS Analysis and Testing","Hopkins Estates Limited","GTAS148","Steart Hill Farm\nSteart Hill\nWest Camel\nYoevil\nSomerset","BA22 7RF","United Kingdom"]
["GTAS Supervision, Sampling and Weighing","Cargo Inspection Services Ltd","GTAS038","Icknield House\nWinston Green\nStowmarket\nSuffolk","IP14 6BQ","United Kingdom"]
["GTAS Supervision, Sampling and Weighing","Independent Shipping Agencies Ltd","GTAS073","Littlewick Farm\nSouth End\nGoxhill\nN  Lincolnshire","DN19 7LZ","United Kingdom"]
["GTAS Supervision, Sampling and Weighing","C.A.M Consultants","GTAS101","6a Northern Road\nBelfast Harbour Estate\nBelfast\nNorthern Ireland","BT3 9AL","United Kingdom"]
["GTAS Supervision, Sampling and Weighing","M Jary Limited","GTAS144","63 Tennyson Avenue\nKings Lynn\nNorfolk","PE30 2QG","United Kingdom"]
["GTAS Supervision, Sampling and Weighing","Sea Spec International","GTAS187","Manor House\nMain Street\nBeeford\nDriffield\nEast Yorkshire","YO25 8BD","United Kingdom"]
["GTAS Supervision, Sampling and Weighing","Nationwide Independent Inspections","GTAS274","62 Rostrevor Road\nHiltown\nNewry\nCounty Down","BT34 5TZ","United Kingdom"]
["GTAS Supervision, Sampling and Weighing","Alex Stewart Agriculture Ltd","GTAS289","21 Sefton Business Park\nNetherton\nLiverpool","L30 1RD","United Kingdom"]
["GTAS Supervision, Sampling and Weighing","Quality Cargo Inspection","GTAS294","Round Cottage\nCrow Lane\nTendring","CO16 9AW","United Kingdom"]
["GTAS Trading and Merchanting","Seaboard Overseas Ltd","GTAS384","3rd Floor Rose House\n51 - 59 Circular Road\nDouglas","IM1 1AZ","Isle of Man"]
["GTAS Trading and Merchanting","Robert Kerr Agriculture","GTAS004","Merton Croft\nWest End Lane, Merton\nBicester\nOxfordshire","OX25 2NG","United Kingdom"]
["GTAS Trading and Merchanting","JRL Clarke","GTAS006","69 Rugby Road\nClifton\nRugby","CV23 0DE","United Kingdom"]
["GTAS Trading and Merchanting","Feed Factors Ltd","GTAS007","The Gallery\nWhittaker Avenue\nRichmond","TW9 1EH","United Kingdom"]
["GTAS Trading and Merchanting","Edward Swale Ltd","GTAS010","Springwood Corn Mill\nHolywell Green\nHalifax\nWest Yorkshire","HX4 9BJ","United Kingdom"]
["GTAS Trading and Merchanting","S B Agriculture Ltd","GTAS029","The Beeches\nWimbotsham\nKings Lynn\nNorfolk","PE34 3PZ","United Kingdom"]
["GTAS Trading and Merchanting","Witney Grain Ltd","GTAS058","Unit 1 Roundway Hill Business Centre\nHopton Park Industrial Estate\nDevizes\nWiltshire","SN10 2LT","United Kingdom"]
["GTAS Trading and Merchanting","Saxon Agriculture Ltd","GTAS061","Acorn House\nTurbine Way\nSwaffham\nNorfolk","PE37 7XN","United Kingdom"]
["GTAS Trading and Merchanting","John Foad & Company","GTAS322","30 Westbere Lane\nWestbere\nCanterbury\nKent","CT2 0HH","United Kingdom"]
["GTAS Trading and Merchanting","H North Agriculture Ltd","GTAS364","Flat 3\n126 St Owens Street\nHereford","HR1 2QF","United Kingdom"]
["GTAS Trading and Merchanting","North Herts Farmers Grain Ltd","GTAS397","Hitchin Road\nWeston\nHitchin\nHerts","SG4 7AX","United Kingdom"]
["GTAS Trading and Merchanting","A & B Davies Grain Trading Ltd","GTAS435","The Stables\nGreenfield\nDilwyn \nHereford","HR4 8JG","United Kingdom"]
["GTAS Trading and Merchanting","Gowlett Grain Ltd","GTAS474","16 Mill Lane\nLinton\nCambridge","CB21 4JY","United Kingdom"]
["GTAS Trading and Merchanting","Acorn Arable Limited","GTAS505","Unit 4\nHartlebury Trading Estate \nHartlebury\nKidderminster\nWorcestershire","DY10 4JB","United Kingdom"]
["GTAS Trading and Merchanting","Warden Agri","GTAS777","The Grange \nPartney\nLincolnshire","PE23 4PH","United Kingdom"]

{"sheet":"TASCC","index":1,"n_rows":129,"n_cols":11,"rows_kept":129,"cut":false,"hidden":false,"merged":[]}
["List of TASCC participants to export barley to China"]
["TASCC participants  who are considered by Defra meet the relevant Chinese inspection and quarantine conditions for exporting barley to China by holding certification to the appropriate trade assurance scheme"]
["Correct at 25 March 2019"]
["To check the latest status of a registration please refer to: ",null,"aictradeassurance.org.uk/home"]
["Scheme id","Business Name","Address","Address line 1","Address line 2","Address line 3","Country","County","Town","Postcode","Scope"]
["XX260","A L Cox & Sons Ltd (incorporating A L Cox & Sons)",{"$f":"CONCATENATE(D6,\", \",, E6,\", \",, F6,\", \",, G6,\", \",, H6,\", \",, I6,\",\",,J6)","v":"Corn Merchants, 6 High Street,, Metheringham, England, Lincolnshire, Lincoln,LN4 3EA"},"Corn Merchants","6 High Street,","Metheringham","England","Lincolnshire","Lincoln","LN4 3EA","The haulage of bulk combinable crops, dry feed materials/ingredients, compound animal feeding stuffs and as-grown cereal/herbage seed.\r\nThe storage of combinable crops and dry feed materials at A C Taylor, Field Farm stores 1-6 and Ryland House store 1. \r\nThe merchanting of combinable crops in bulk.\r\nThe compliance of the Renewable Energy Directive (RED)"]
["XX433","A R Pearson & Son Grain Ltd",{"$f":"CONCATENATE(D7,\", \",, E7,\", \",, F7,\", \",, G7,\", \",, H7,\", \",, I7,\",\",,J7)","v":"Hilltop Farm, Blankney Barff, Metheringham, England, Lincolnshire, Lincoln,LN4 3BH"},"Hilltop Farm","Blankney Barff","Metheringham","England","Lincolnshire","Lincoln","LN4 3BH","The merchanting of bulk combinable crops.\r\nThe compliance of the Renewable Energy Directive (RED)"]
["AD069","Adams & Howling Ltd","Granary Offices, Manor House Farm, Little Plumstead, England, Norfolk, Norwich,NR13 5EL","Granary Offices","Manor House Farm","Little Plumstead","England","Norfolk","Norwich","NR13 5EL","The merchanting and contractual testing of combinable crops."]
["YY257","ADM Direct, a division of Archer Daniels Midland Erith Ltd","Unit 1, Barton Court, 223 Barton Court, Comberton, England, Cambridgeshire, Cambridge,CB23 7BU","Unit 1, Barton Court","223 Barton Court","Comberton","England","Cambridgeshire","Cambridge","CB23 7BU","The merchanting of bulk combinable crops. The compliance of the Renewable Energy Directive (RED)."]
["DA044/CJ","Agrii",{"$f":"CONCATENATE(D10,\", \",, E10,\", \",, F10,\", \",, G10,\", \",, H10,\", \",, I10,\",\",,J10)","v":"Moreton Mill, Moreton, , England, Essex, Ongar,CM5 0DP"},"Moreton Mill","Moreton",null,"England","Essex","Ongar","CM5 0DP","The haulage of bulk combinable crops, dry feed materials/ingredients, compound animal feedingstuffs and as grown cereal/herbage seeds.\r\nThe storage of combinable crops and the operation of seed cleaning plant with the merchanting of screenings and untreated surplus seed crops for animal feed. Bins 1-3"]
["DA044/CJ","Agrii","Sleaford Road, Bracebridge Heath, , England, Lincolnshire, Lincoln,LN4 2NW","Sleaford Road","Bracebridge Heath",null,"England","Lincolnshire","Lincoln","LN4 2NW","The haulage of bulk combinable crops, dry feed materials/ingredients, compound animal feedingstuffs and as grown cereal/herbage seeds.\r\nThe storage of combinable crops and the operation of seed cleaning plant with the merchanting of screenings and untreated surplus seed crops for animal feed. Bins G & W"]
["DA044/CJ","Agrii","The Seed Plant, Rosehall, , Scotland, Aberdeenshire, TURIFF,AB53 4HD","The Seed Plant","Rosehall",null,"Scotland","Aberdeenshire","TURIFF","AB53 4HD","The storage of combinable crops and the operation of seed cleaning plant with the merchanting of screenings and untreated surplus seed crops for animal feed. Bins 1-4"]
["EB007","Agrovista UK Ltd t/a John Ebbage Seeds Ltd","Peacock House, 32 St Mary's Street, , England, Cambridgeshire, Ely,CB7 4ES","Peacock House","32 St Mary's Street",null,"England","Cambridgeshire","Ely","CB7 4ES","The merchanting of combinable crops in bulk."]
["HA246","Alexander Harley Seeds (Milnathort) Ltd","Thomanean, Milnathort, , Scotland, Tayside, Kinross,KY13 0RF","Thomanean","Milnathort",null,"Scotland","Tayside","Kinross","KY13 0RF","The merchanting of combinable crops in bulk. The storage and drying of combinable crops in the main shed and shed 5."]
["XX207","Alexander Inglis & Son Ltd","Meadow Stores, Ormiston, , Scotland, East Lothian, Tranent,EH35 5NG","Meadow Stores","Ormiston",null,"Scotland","East Lothian","Tranent","EH35 5NG","The merchanting, storage, drying, cleaning and contractual testing of combinable crops, dry feed materials/ingredients. Sheds A - J and Silos 1 & 2, including a temporary holding pad.\r\nThe compliance of the Renewable Energy Directive (RED)"]
["XX207","Alexander Inglis & Son Ltd","Swarland Grain Dryers Ltd, Kitswell Dene, Felton, England, Northumberland, Morpeth,NE65 9NZ","Swarland Grain Dryers Ltd","Kitswell Dene","Felton","England","Northumberland","Morpeth","NE65 9NZ","The storage, drying, cleaning and contractual testing of combinable crops, dry feed materials/ingredients. Sheds 1 & 2, including a temporary holding pad. \r\nThe compliance of the Renewable Energy Directive (RED)"]
["YY1665","Argrain Ltd","Mill Farm, Raskelf, Easingwold, England, North Yorkshire, York,YO61 3LB","Mill Farm","Raskelf","Easingwold","England","North Yorkshire","York","YO61 3LB","The haulage of bulk moist co-products, combinable crops, dry feed materials/ingredients and compound animal feeding stuffs. The merchanting of combinable crops."]
["XY081","Askew & Barrett (Pulses) Ltd","Smeeth Road, Marshland St. James, , England, Cambridgeshire, Wisbech,PE14 8JF","Smeeth Road","Marshland St. James",null,"England","Cambridgeshire","Wisbech","PE14 8JF","The Merchanting of combinable crops, dry feed materials/ingredients.\r\nThe operation of pulse cleaning/pelleting plant with screenings/rejects designated as animal feed materials.\r\nThe storage and contractual testing of combinable crops and dry feed materials/ingredients in warehouses 1, 2, 3 & 5, bulk store A and bulk stores 1-14, Plants 1 & 2 and 2 silos."]
["YY232","Aylsham Grain Ltd inc Dewing Grain","Industrial Estate, Banningham Road, , England, Norfolk, Aylsham,NR11 6LP","Industrial Estate","Banningham Road",null,"England","Norfolk","Aylsham","NR11 6LP","The merchanting of combinable crops in bulk.\r\nThe storage, drying and cleaning and contractual testing of combinable crops, and storage of combinable crops and dry feed materials/ingredients\r\nStorage in silos A1 -A3,B1 - B3, C1 - C4, D1 -D4, E1-E3, F1-F4.\r\nThe compliance of the Renewable Energy Directive (RED)"]
["YY1538","Bairds Malt Ltd trading as Saxon Agriculture","Acorn House, Turbine Way, , England, Norfolk, Swaffham,PE37 7XN","Acorn House","Turbine Way",null,"England","Norfolk","Swaffham","PE37 7XN","The merchanting of combinable crops in bulk."]
["YY1538","Bairds Malt Ltd trading as Saxon Agriculture","No 6 Grimston Grange Offices, Grimston Park, , , North Yorkshire, TADCASTER,LS24 9BX","No 6 Grimston Grange Offices","Grimston Park",null,null,"North Yorkshire","TADCASTER","LS24 9BX","The merchanting of combinable crops in bulk."]
["BA281","Bartholomews Agri Food Ltd (TASCC)","Fisherton Manor Farms, Fisherton De La Mere, Wylye, , , WARMINSTER,BA12 0PY","Fisherton Manor Farms","Fisherton De La Mere","Wylye",null,null,"WARMINSTER","BA12 0PY","The contractual testing of combinable crops for moisture, specific weight, admix protein and hagberg FN. The merchanting of combinable crops in bulk, including remote merchant operation at Warminster."]
["BA281","Bartholomews Agri Food Ltd (TASCC)","Portfield, , , England, West Sussex, Chichester,PO19 7TT","Portfield",null,null,"England","West Sussex","Chichester","PO19 7TT","The contractual testing of combinable crops for moisture, specific weight, admix protein and hagberg FN. The merchanting of combinable crops in bulk, including remote merchant operation at Warminster."]
["BO010","Bodle Bros Ltd","Southdown Store, Cuckfield Road, , England, West Sussex, Burgess Hill,RH15 8RE","Southdown Store","Cuckfield Road",null,"England","West Sussex","Burgess Hill","RH15 8RE","The haulage of bulk combinable crops, dry feed materials/ingredients, compound animal feeding stuffs and as grown cereal/herbage seed.\r\nThe standalone testing of combinable crops for protein, moisture, specific weight and nitrogen.\r\nThe merchanting of combinable crops in bulk."]
["YY477","Camgrain Stores Ltd, inc Camgrain (Services) Ltd & Camgrain Ltd","Cambridge APC, London Road, Balsham, England, Cambridgeshire, Cambridge,CB21 4HH","Cambridge APC","London Road","Balsham","England","Cambridgeshire","Cambridge","CB21 4HH","The haulage, merchanting, storage, drying, cleaning and contractual testing of combinable crops, dry feed materials/ingredients including the haulage of moist co-products.\r\nStorage capacity of 192,000 tonnes in 25 silos/holding bins plus Flat Stores A & B plus Temporary holding. The Storage at Deal Farms. The compliance of the Renewable Energy Directive (RED)"]
["WE001","Cefetra Ltd","Henstridge Trading Estate, , , England, Somerset, Templecombe,BA8 0TN","Henstridge Trading Estate",null,null,"England","Somerset","Templecombe","BA8 0TN","The storage, drying, cleaning and contractual testing of combinable crops in Flat Stores 1 - 3, Bins A1 - A6, B1 - B6, C1 - C5, D1 - D4, E1 - E4, F1 - F3 & G1 - G3 including temporary holding pad.\r\nThe merchanting of combinable crops in bulk including remote office at Cefetra Anglia."]
["JA057","Charles Jackson & Co Ltd","White Barn, Station Road, , England, Northamptonshire, Long Buckby,NN6 7QA","White Barn","Station Road",null,"England","Northamptonshire","Long Buckby","NN6 7QA","The haulage of bulk and bagged combinable crops, bulk dry feed materials/ingredients, compound animal feeding stuffs and as grown cereal/herbage seed.\r\nThe storage, contractual testing, drying and cleaning of combinable crops, dry feed materials/ingredients in Hanger 1 (store 1 ,2, 3 & 4) Hanger 2 (store 5, 6, 7 & 8) Hanger 3 (store 9, 10, 11 & 12) Hanger 4 (store 13, 14, 15 & 16)\r\nThe merchanting of combinable crops in bulk.\r\nThe compliance of the Renewable Energy Directive (RED)"]
["XX857","Charles Wright & Sons Ltd","Church Road, Old Leake, , England, Lincolnshire, Boston,PE22 9NU","Church Road","Old Leake",null,"England","Lincolnshire","Boston","PE22 9NU","The haulage, storage, drying and contractual testing of bulk combinable crops, dry feed materials/ingredients, compound animal feeding stuffs and as-grown cereal/herbage seed. Stores 1-5\r\nThe merchanting of bulk combinable crops in bulk.\r\nThe compliance of the Renewable Energy Directive (RED)"]
["XX385","Cherwell Valley Silos","Twyford, , , England, Oxfordshire, Banbury,OX17 3AA","Twyford",null,null,"England","Oxfordshire","Banbury","OX17 3AA","The Haulage of bulk combinable crops, dry feed ingredients, compound animal feeds and as-grown cereal/herbage seed, incorporating Valley Transport Solutions. The merchanting of combinable crops."]
["CH015","Chilton Grain Ltd","Chilton Airfield, Great Waldingfield, , England, Suffolk, Sudbury,CO10 0RB","Chilton Airfield","Great Waldingfield",null,"England","Suffolk","Sudbury","CO10 0RB","The merchanting of combinable crops in bulk.\r\nThe compliance with the Renewable Energy Directive (RED)"]
["UN021","COFCO International UK Limited","Rose HIll, Erbistock, , England, , Wrexham,LL13 0DE","Rose HIll","Erbistock",null,"England",null,"Wrexham","LL13 0DE","The merchanting of bulk combinable crops. The contractual testing of combinable crops for moisture, specific weight, admix, protein, hagberg, mycotoxins and screenings."]
["UN021","COFCO International UK Limited","The Havens, Ransomes Europark, , England, Suffolk, Ipswich,IP3 9SJ","The Havens","Ransomes Europark",null,"England","Suffolk","Ipswich","IP3 9SJ","The haulage of bulk moist co-products, combinable crops, dry feed materials/ingredients, compound animal feeding stuffs and as-grown cereal/herbage seeds also rail and water transport. The merchanting of combinable crops in bulk at The Havens. The compliance of the Renewable Energy Directive (RED)"]
["XX369","Cotswold Agricultural Merchants","Middle Hill Farm, Saintbury, , England, Worcestershire, Broadway,WR12 7PX","Middle Hill Farm","Saintbury",null,"England","Worcestershire","Broadway","WR12 7PX","The merchanting of combinable crops in bulk."]
["XY984","Cozens Marketing","Karen House, Long Lane,, Flordon, England, Norfolk, Norwich,NR15 1RP","Karen House","Long Lane,","Flordon","England","Norfolk","Norwich","NR15 1RP","The merchanting of combinable crops in bulk."]
["YY438","D & D Mathie Ltd","3 Milton Court, Pittenweem, , Scotland, Fife, Anstruther,KY10 2LB","3 Milton Court","Pittenweem",null,"Scotland","Fife","Anstruther","KY10 2LB","The merchanting of combinable crops in bulk. The compliance of the Renewable Energy Directive (RED)."]
["XX816","D M Carnegie","Steelstrath, , , Scotland, Grampian, Laurencekirk,AB30 1RN","Steelstrath",null,null,"Scotland","Grampian","Laurencekirk","AB30 1RN","The haulage of bulk moist co-products, combinable crops, dry feed materials/ingredients, compound animal feeding stuffs and as-grown cereal/herbage seed.\r\nThe storage, drying, cleaning and contractual testing of combinable crops, dry feed materials/ingredients in Stores HH1, RG1 & Sheds 1 & 2. Plus storage within the biomass shed and temporary holding pad.\r\nThe merchanting of combinable crops in bulk.\r\nThe compliance of the Renewable Energy Directive (RED)."]
["DA119/AA","Dalton Seeds Ltd","Dalmark House, Thorney Road,, Eye, England, Cambridgeshire, Peterborough,PE6 7UD","Dalmark House","Thorney Road,","Eye","England","Cambridgeshire","Peterborough","PE6 7UD","The merchanting of combinable crops.\r\nThe storage of combinable crops, dry feed materials/ingredients and drying and cleaning of combinable crops in silos A, B, C, D, G & H and tote bins 1 - 23."]
["XX869","David Stennett Ltd","Culford Lodge Farm, Ingham, , England, Suffolk, Bury St. Edmunds,IP31 1PT","Culford Lodge Farm","Ingham",null,"England","Suffolk","Bury St. Edmunds","IP31 1PT","The haulage of combinable crops, dry feed materials/ingredients, compound animal feeding stuffs and as-grown cereal/herbage seed. The storage of combinable crops at Culford Lodge Farm in stores 21, 22 & 24. The merchanting of combinable crops in bulk at Culford Lodge Commodities Ltd. The storage, drying, cleaning and contractual testing of combinable crops, dry feed materials/ingredients at Neville House in stores 11, 11a, 12, 14 & bin 1."]
["XX869","David Stennett Ltd","Ingham, , , , Suffolk, BURY ST EDMUNDS,IP31 1PL","Ingham",null,null,null,"Suffolk","BURY ST EDMUNDS","IP31 1PL","The haulage of combinable crops, dry feed materials/ingredients, compound animal feeding stuffs and as-grown cereal/herbage seed. The storage of combinable crops at Culford Lodge Farm in stores 21, 22 & 24. The merchanting of combinable crops in bulk at Culford Lodge Commodities Ltd. The storage, drying, cleaning and contractual testing of combinable crops, dry feed materials/ingredients at Neville House in stores 11, 11a, 12, 14 & bin 1."]
["YY2220","Deeside Agri Services Ltd","Kilberry, , , Ireland, County Meath, NAVON,","Kilberry",null,null,"Ireland","County Meath","NAVON",null,"The storage, drying, cleaning, contractual testing and merchanting of combinable crops, dry feed materials/ingredients, storage at Richardstown stores 3, 4, 5 and store 6 as a temporary holding store, Kilberry Stores 1, 2, 3, 4, 5 & 6."]
["YY2220","Deeside Agri Services Ltd","Richardstown, , , Republic of Ireland, County Louth, DUNLEER,","Richardstown",null,null,"Republic of Ireland","County Louth","DUNLEER",null,"The storage, drying, cleaning, contractual testing and merchanting of combinable crops, dry feed materials/ingredients, storage at Richardstown stores 3, 4, 5 and store 6 as a temporary holding store, Kilberry Stores 1, 2, 3, 4, 5 & 6."]
["DE217","Dengie Crops Ltd","Hall Road, , Asheldham, England, Essex, Southminster,CM0 7JF","Hall Road",null,"Asheldham","England","Essex","Southminster","CM0 7JF","The haulage of bulk and bagged combinable crops, dry feed materials/ingredients, compound animal feeding stuffs and as grown cereal/herbage seed.\r\nThe storage, drying and contractual testing for moisture, specific weight, admix, protein, don, malting barley.\r\nStorage in A1 - A5, B1 - B5, C1 - C3, D1 - D3, E1 - E3 and F1 - F3.\r\nThe merchanting of combinable crops in bulk\r\nThe compliance of the Renewable Energy Directive (RED)"]
["XX889","Duncan Grain (Fochabers) Ltd","Gordon Castle Farm, Fochabers, , Scotland, Grampian, Moray,IV32 7PQ","Gordon Castle Farm","Fochabers",null,"Scotland","Grampian","Moray","IV32 7PQ","The haulage of bulk combinable crops, dry feed materials/ingredients, compound animal feeding stuffs and as grown cereal/herbage seed. The merchanting of combinable crops in bulk."]
["XX298","Dunns (Long Sutton) Ltd","Phoenix Lodge, Winters Lane, Long Sutton, England, Lincolnshire, Spalding,PE12 9BE","Phoenix Lodge","Winters Lane","Long Sutton","England","Lincolnshire","Spalding","PE12 9BE","The merchanting of combinable crops in bulk.\r\nThe operation of seed and pulse cleaning plant with screening/rejects designated as animal feed materials.\r\nThe storage and contractual testing of combinable crops, dry feed materials/ingredients including:\r\nLine 1 (Silos 1 & 2 Co-products 1a & 1b)\r\nLine 2 (Silos 3 & 4 Co-products 2a & 2b)\r\nLine 3 (Silos 5 & 6 Co-products 3a & 3b) \r\nLine 4 (Silos 7 & 8 Co-product 1)\r\nLine 5 (Silos 1 - 3  & Co-products 2a & 3a)\r\nLine 6 (Silos 1 - 4 & Co-products 1-4)"]
["YY1747","E E Grain Ltd","Hill Road, , Gotham, England, Notts, Nottingham,NG11 0LD","Hill Road",null,"Gotham","England","Notts","Nottingham","NG11 0LD","The merchanting of combinable crops in bulk. The compliance of the Renewable Energy Directive (RED)"]
["XX411","E Felgate & Son","Kendall Lodge, Carleton Rode, , England, Norfolk, Norwich,NR16 1RH","Kendall Lodge","Carleton Rode",null,"England","Norfolk","Norwich","NR16 1RH","The merchanting of combinable crops in bulk."]
["EA104","East Coast Viners Grain (Drumlithie) Ltd","Broadwood, Drumlithie, , Scotland, Aberdeenshire, Stonehaven,AB39 3XA","Broadwood","Drumlithie",null,"Scotland","Aberdeenshire","Stonehaven","AB39 3XA","The haulage of bulk  and bagged combinable crops, dry feed materials/ingredients, compound animal feeding stuffs and as-grown cereal/herbage seed. The storage, drying and contractual testing of combinable crops/dry feed material in stores A - H including a temporary holding pad.\r\nThe merchanting of combinable crops.\r\nThe compliance of the Renewable Energy Directive (RED)"]
["EA026","East of Scotland Farmers Ltd","East Ardler, , , , Perthshire, MEIGLE,PH12 8SR","East Ardler",null,null,null,"Perthshire","MEIGLE","PH12 8SR","Activities carried out at Forfar Road, haulage of bulk combinable crops, dry feed materials/ingredients, compound animal feeding stuffs and as grown cereal/herbage seed. The storage, drying, cleaning and contractual testing of combinable crops, dry feed materials/ingredients at Drier1,- silos 1-4, Drier 2, Shed 2, Drier 5, silos 1-4 & Hanger Shed, Drier 6 - shed6, Drier 7 shed 7 The merchanting of combinable crops in bulk. Storage in one store at  Easter Denhead and one store at East Ardler The compliance with the Renewable Energy Directive (RED)."]
["EA026","East of Scotland Farmers Ltd","Easter Denhead, , , , Perthshire, COUPER ANGUS,PH13 9ET","Easter Denhead",null,null,null,"Perthshire","COUPER ANGUS","PH13 9ET","Activities carried out at Forfar Road, haulage of bulk combinable crops, dry feed materials/ingredients, compound animal feeding stuffs and as grown cereal/herbage seed. The storage, drying, cleaning and contractual testing of combinable crops, dry feed materials/ingredients at Drier1,- silos 1-4, Drier 2, Shed 2, Drier 5, silos 1-4 & Hanger Shed, Drier 6 - shed6, Drier 7 shed 7 The merchanting of combinable crops in bulk. Storage in one store at  Easter Denhead and one store at East Ardler The compliance with the Renewable Energy Directive (RED)."]
["EA026","East of Scotland Farmers Ltd","Forfar Road, , Coupar Angus, Scotland, Perthshire, Blairgowrie,PH13 9AW","Forfar Road",null,"Coupar Angus","Scotland","Perthshire","Blairgowrie","PH13 9AW","Activities carried out at Forfar Road, haulage of bulk combinable crops, dry feed materials/ingredients, compound animal feeding stuffs and as grown cereal/herbage seed. The storage, drying, cleaning and contractual testing of combinable crops, dry feed materials/ingredients at Drier1,- silos 1-4, Drier 2, Shed 2, Drier 5, silos 1-4 & Hanger Shed, Drier 6 - shed6, Drier 7 shed 7 The merchanting of combinable crops in bulk. Storage in one store at  Easter Denhead and one store at East Ardler The compliance with the Renewable Energy Directive (RED)."]
["YY1102","Edwalton Cereals Ltd","Granary House, Melton Road, Edwalton, England, Nottinghamshire, Nottingham,NG12 4DR","Granary House","Melton Road","Edwalton","England","Nottinghamshire","Nottingham","NG12 4DR","The merchanting of combinable crops in bulk"]
["FE123","Fengrain (Services) Ltd","Hook Lane, Wimblington, , , Cambridgeshire, MARCH,PE15 0QN","Hook Lane","Wimblington",null,null,"Cambridgeshire","MARCH","PE15 0QN","The merchanting of combinable crops.\r\nThe storage, drying, cleaning and contractual testing of combinable crops, dry feed materials/ingredients in stores:\r\nMain Store Bay 1-4, Alan Day Store AD1-AD2 & Jubilee Store Bays G1-G4\r\nAnd silos: A1-A10, B1-B10, E1-E3, F1-F4, LA1-LA4, LB1-LB5, Y1, Y2, Y4, Y5, Y6 & Y7. \r\nPlus the use of 2 temporary holding pads."]
["FR100","Fram Farmers Ltd","Station Road, , Framlingham, England, Suffolk, Woodbridge,IP13 9EE","Station Road",null,"Framlingham","England","Suffolk","Woodbridge","IP13 9EE","The merchanting of combinable crops in bulk.  \r\nThe compliance of the Renewable Energy Directive (RED)"]
["YY1452","Frederic Smart and Son Ltd","7 Papworth Business Park, Stirling Way, Papworth Everard, England, Cambridgeshire, Cambridge,CB23 3GY","7 Papworth Business Park","Stirling Way","Papworth Everard","England","Cambridgeshire","Cambridge","CB23 3GY","The merchanting of combinable crops in bulk.The storage of combinable crops, dry feed materials/ingredients at Lower Heath Farm, Stores 4 and 5. The compliance of the Renewable Energy Directive (RED)"]
["YY1452","Frederic Smart and Son Ltd","Lower Heath Farm (Grain store), Therfield Road, Odsey, , Herts, BALDOCK,SG7 6SE","Lower Heath Farm (Grain store)","Therfield Road","Odsey",null,"Herts","BALDOCK","SG7 6SE","The merchanting of combinable crops in bulk.The storage of combinable crops, dry feed materials/ingredients at Lower Heath Farm, Stores 4 and 5. The compliance of the Renewable Energy Directive (RED)"]
["BA124/AA","Frontier Agriculture Ltd","Berwick Upon Tweed, Windmill Way West, Ramparts Business park, , Northumberland, BERWICK-UPON-TWEED,TD15 1TB","Berwick Upon Tweed","Windmill Way West","Ramparts Business park",null,"Northumberland","BERWICK-UPON-TWEED","TD15 1TB","The merchanting and haulage of combinable crops in bulk."]
["BA124/AA","Frontier Agriculture Ltd","Beverley Road, , Cranswick, England, East Yorkshire, Driffield,YO25 9PF","Beverley Road",null,"Cranswick","England","East Yorkshire","Driffield","YO25 9PF","The storage, drying and cleaning of combinable crops, dry feed materials/ingredients, silos 1 & 2, stores 6,7,8,9,10,11 and bay 12 and a temporary holding pad. The operation of a seed cleaning plant with screenings/rejects designated as animal feed materials. The haulage of  bulk moist co-products, combinable crops, dry feed materials/ingredients, compound animal feeding stuffs and as grown cereal/herbage seed.\r\nThe merchanting of bulk combinable crops in bulk, including water transport and handling.\r\nThe contractual testing of combinable crops, dry feed materials/ingredients."]
["BA124/AA","Frontier Agriculture Ltd","Camp Road, , , England, Lincoln, Witham St Hughes,LN6 9TN","Camp Road",null,null,"England","Lincoln","Witham St Hughes","LN6 9TN","The merchanting and haulage of combinable crops in bulk."]
["BA124/AA","Frontier Agriculture Ltd","Georgetown Road, A1 Trunk Road, , England, Bedfordshire, Sandy,SG19 2UB","Georgetown Road","A1 Trunk Road",null,"England","Bedfordshire","Sandy","SG19 2UB","The haulage of bulk moist co-products, combinable crops, dry feed materials/ingredients, compound animal feeding stuffs and as grown cereal/herbage seed.\r\nThe proficiency testing scheme and contractual testing of combinable, dry feed \r\nThe merchanting of bulk combinable crops in bulk, including water transport and handling. The operation of seed cleaning plant with screening/reject designated for animal feeds.\r\nThe storage of seed screenings in bins SB1 & SB2."]
["BA124/AA","Frontier Agriculture Ltd","Wells Agriculture, Granary House, Melton Road, England, Nottinghamshire, Edwalton,NG12 4DR","Wells Agriculture","Granary House","Melton Road","England","Nottinghamshire","Edwalton","NG12 4DR","The haulage of combinable crops, dry feed materials/ingredients, compound animal feeding stuffs and as grown cereal/herbage seed.\r\nThe storage, drying and cleaning and contractual testing of combinable crops, dry feed materials/ingredients sheds 1-6 and chief bins 1 and 2\r\nThe merchanting of combinable crops in bulk, including water transport and handling."]
["XX753","G & M Nisbet","Shepherds Cottage, Graden Farm, , Scotland, Borders, Kelso,TD5 8BS","Shepherds Cottage","Graden Farm",null,"Scotland","Borders","Kelso","TD5 8BS","The haulage of bulk combinable crops, dry feed materials/ingredients, compound animal feeding stuffs and as-grown cereal/herbage seed. The merchanting of combinable crops."]
["MA534/GB","G B Seeds (Trading Division of Masstock UK Ltd)","Bottom Store, Thetford Road, Ingham, , Suffolk, BURY ST EDMUNDS,IP31 1NR","Bottom Store","Thetford Road","Ingham",null,"Suffolk","BURY ST EDMUNDS","IP31 1NR","The merchanting of combinable crops in bulk including water/rail transport and handling. The storage, packing, cleaning and contractual testing of combinable crops, dry feed materials/ingredients, including Bins A, B & C and numbers 1-15 and bottom store. The operation of seed pulse cleaning plant with screenings/rejects designated as animal feed materials."]
["MA534/GB","G B Seeds (Trading Division of Masstock UK Ltd)","Maltings Lane, Ingham, , England, Suffolk, Bury St. Edmunds,IP31 1NB","Maltings Lane","Ingham",null,"England","Suffolk","Bury St. Edmunds","IP31 1NB","The merchanting of combinable crops in bulk including water/rail transport and handling. The storage, packing, cleaning and contractual testing of combinable crops, dry feed materials/ingredients, including Bins A, B & C and numbers 1-15 and bottom store. The operation of seed pulse cleaning plant with screenings/rejects designated as animal feed materials."]
["YY2120","G N & MEM Morris","New Sontley Farm, Sontley Road, , Wales, Clwyd, Wrexham,LL13 0UU","New Sontley Farm","Sontley Road",null,"Wales","Clwyd","Wrexham","LL13 0UU","The haulage and merchanting of bulk combinable crops, dry feed materials/ingredients, compound animal feeding stuffs and as-grown cereal/herbage seed. The storage of combinable crops, dry feed materials/ingredients at Berthengron Farm store 1."]
["DA167","G O Davies (Westbury) Ltd","Harvest House, Westbury, , England, Shropshire, Shrewsbury,SY5 9BY","Harvest House","Westbury",null,"England","Shropshire","Shrewsbury","SY5 9BY","The merchanting of combinable crops in bulk.\r\nThe compliance of the Renewable Energy Directive (RED)"]
["WI001/AA","G Williams & Co (Grain) Ltd","Beaufort House, Amelia Court, Swanton Close, England, Nottinghamshire, Retford,DN22 7HJ","Beaufort House","Amelia Court","Swanton Close","England","Nottinghamshire","Retford","DN22 7HJ","The haulage, merchanting and contractual testing for moisture, specific weight, admix, protein and oil of combinable crops, dry feed materials/ingredients. The compliance of the Renewable Energy Directive (RED)"]
["WI001/AA","G Williams & Co (Grain) Ltd","F Walter & Sons Ltd, Sutton Grange, Sutton cum Lound, , Notts, RETFORD,DN22 8SB","F Walter & Sons Ltd","Sutton Grange","Sutton cum Lound",null,"Notts","RETFORD","DN22 8SB","The haulage, merchanting and contractual testing for moisture, specific weight, admix, protein and oil of combinable crops, dry feed materials/ingredients. The compliance of the Renewable Energy Directive (RED)"]
["YY1346","GFP Agriculture Ltd","Pegasus Road, Elsham Wold Industrial Estate, , England, , Brigg,DN20 0SQ","Pegasus Road","Elsham Wold Industrial Estate",null,"England",null,"Brigg","DN20 0SQ","The storage, cleaning and contractual testing of combinable crops, dry feed materials/ingredients. The merchanting of combinable crops in bulk. Store I/D - Sheds 5 , 6, 7 and 8, Screening bins 1 & 2, Intake bins 1-6,Holding bins 7 & 8. The  haulage of bulk combinable crops, dry feed materials/ ingredients, compound animal feeding stuffs and as-grown cereal/ herbage seed."]
["WY062/AD","Glasson Grain Ltd (TASCC)","School Lane, Glassson Dock, , , , LANCASTER,LA2 0AR","School Lane","Glassson Dock",null,null,null,"LANCASTER","LA2 0AR","The haulage of bulk combinable crops, dry feed materials/ingredients, compound animal feeding stuffs and as-grown cereal/herbage seed. The storage and contractual testing of combinable crops, dry feed materials. Storage at Glasson Dock stores DS2-DS12 and School Lane store DS7. The merchanting of bulk combinable crops."]
["WY062/AD","Glasson Grain Ltd (TASCC)","West Quay, Glasson Dock, , England, Lancashire, Lancaster,LA2 0DB","West Quay","Glasson Dock",null,"England","Lancashire","Lancaster","LA2 0DB","The haulage of bulk combinable crops, dry feed materials/ingredients, compound animal feeding stuffs and as-grown cereal/herbage seed. The storage and contractual testing of combinable crops, dry feed materials. Storage at Glasson Dock stores DS2-DS12 and School Lane store DS7. The merchanting of bulk combinable crops."]
["GL039","Gleadell Agriculture Ltd",{"$f":"CONCATENATE(D71,\", \",, E71,\", \",, F71,\", \",, G71,\", \",, H71,\", \",, I71,\",\",,J71)","v":"3 Fox Oak Park, Common Road, , , , DUNNINGTON,YO19 5RZ"},"3 Fox Oak Park","Common Road",null,null,null,"DUNNINGTON","YO19 5RZ","The merchanting of combinable crops"]
["GL039","Gleadell Agriculture Ltd","Lindsey House, Hemswell Cliff, , England, Lincolnshire, Gainsborough,DN21 5TH","Lindsey House","Hemswell Cliff",null,"England","Lincolnshire","Gainsborough","DN21 5TH","The standalone testing of combinable crops for moisture, specific weight, Admix, protein, oil and hagberg.\r\nThe merchanting of combinable crops. The compliance of the Renewable Energy Directive (RED)"]
["GL039","Gleadell Agriculture Ltd","The Old Dairy, East Farm, Codford, , , WARMINSTER,BA12 0PG","The Old Dairy","East Farm","Codford",null,null,"WARMINSTER","BA12 0PG","The merchanting of combinable crops"]
["GL039","Gleadell Agriculture Ltd","Turbine Way, , , , , SWAFFHAM,PE37 7XJ","Turbine Way",{"$nulls":4},"SWAFFHAM","PE37 7XJ","The merchanting of combinable crops"]
["CE096","Glencore Agriculture UK Ltd","Warren House, Bell Lane, , England, Oxfordshire, Thame,OX9 3AL","Warren House","Bell Lane",null,"England","Oxfordshire","Thame","OX9 3AL","The merchanting of bulk combinable crops.\r\nThe compliance of the Renewable Energy Directive (RED)"]
["XX254","GrainCo Ltd","Rosehall, , , Scotland, Aberdeenshire, TURRIFF,AB53 4HD","Rosehall",null,null,"Scotland","Aberdeenshire","TURRIFF","AB53 4HD","The merchanting of combinable crops in bulk."]
["XX254","GrainCo Ltd","Tynegrain Silos, Tyne Dock, , England, Tyne & Wear, South Shields,NE34 9PL","Tynegrain Silos","Tyne Dock",null,"England","Tyne & Wear","South Shields","NE34 9PL","The haulage of bulk combinable crops, dry feed materials/ingredients, compound animal feeding stuffs and as-grown cereal/herbage seed.\r\nThe storage, drying, cleaning and contractual testing of combinable crops, dry feed materials/ingredients in Bays 1 -5, A1 -5, B1 - 5, C1 - 4, D1 - 4, E1 - 4, F1 - 4, G1 - 5 & H1 - 3, including temporary holding pad.\r\nThe merchanting of combinable crops in bulk including water/rail transport and handling.\r\nThe compliance of the Renewable Energy Directive (RED)"]
["WY062/AB","Grainlink","2 The Mill, Home Farm, Stoke Rochford, , Lincolnshire, GRANTHAM,NG33 5EF","2 The Mill","Home Farm","Stoke Rochford",null,"Lincolnshire","GRANTHAM","NG33 5EF","The merchanting of combinable crops in bulk, the contractual testing of combinable crops. The compliance of the Renewable Energy Directive (RED)"]
["WY062/AB","Grainlink","Astley, , , England, Shropshire, Shrewsbury,SY4 4RT","Astley",null,null,"England","Shropshire","Shrewsbury","SY4 4RT","The merchanting of combinable crops in bulk, the contractual testing of combinable crops. The compliance of the Renewable Energy Directive (RED)"]
["YY1273","Grainseed Limited","Unit 3, Airfield Industrial Park, Langton Green, England, Suffolk, Eye,IP23 7HN","Unit 3","Airfield Industrial Park","Langton Green","England","Suffolk","Eye","IP23 7HN","The merchanting of combinable crops in bulk\r\nThe operation of a seed cleaning plant with screenings/rejects designed as animal feed materials.\r\nThe storage of combinable crops, dry feed materials/ingredients in stores 1 & 2"]
["YY1536","H Banham Ltd","4a Raynham Road, Hempton, , England, Norfolk, Fakenham,NR21 7LN","4a Raynham Road","Hempton",null,"England","Norfolk","Fakenham","NR21 7LN","The haulage and storage of bulk combinable crops, dry feed materials/ingredients, compound animal feeding stuffs and as-grown cereal/herbage seed. The Merchanting of combinable crops, compound animal feed and animal feed materials."]
["YY1536","H Banham Ltd","Fakenham Store (Colkirk), Gormans Lane, Colkirk, , Norfolk, FAKENHAM,NR21 7NP","Fakenham Store (Colkirk)","Gormans Lane","Colkirk",null,"Norfolk","FAKENHAM","NR21 7NP","The haulage and storage of bulk combinable crops, dry feed materials/ingredients, compound animal feeding stuffs and as-grown cereal/herbage seed. The Merchanting of combinable crops, compound animal feed and animal feed materials."]
["XX270","Harlow Agricultural Merchants Ltd","Latchmore Bank, Little Hallingbury, , England, Hertfordshire, Bishop's Stortford,CM22 7PJ","Latchmore Bank","Little Hallingbury",null,"England","Hertfordshire","Bishop's Stortford","CM22 7PJ","The merchanting of combinable crops.\r\nThe contractual testing of oilseed rape.\r\n The compliance of the Renewable Energy Directive (RED)"]
["HI001","Highland Grain Ltd","Glaikmore, North Kessock, , Scotland, Highland, Inverness,IV1 3UD","Glaikmore","North Kessock",null,"Scotland","Highland","Inverness","IV1 3UD","The merchanting of combinable crops in bulk. The compliance of the Renewable Energy Directive (RED). The storage, drying, cleaning and contractual testing of combinable crops in Sheds 1 & 2, Silos 1 â€“ 15 and Green Bins 1-7 at Tore. The storage of combinable crops in bulk at Rosskeen Store Shed 1, Pitmaduthy Store and Teaninich Store Shed 1."]
["XX420","Humber Grain Ltd","Coleby Grange Barn, Heath Road, Coleby, , Lincolnshire, LINCOLN,LN5 0AR","Coleby Grange Barn","Heath Road","Coleby",null,"Lincolnshire","LINCOLN","LN5 0AR","The merchanting of combinable crops in bulk including water, rail transport and handling.\r\nThe compliance of the Renewable Energy Directive (RED)"]
["YY1488","Isaac Poad & Sons Ltd","Axholme, Cattal, , England, North Yorkshire, York,YO26 8DY","Axholme","Cattal",null,"England","North Yorkshire","York","YO26 8DY","The storage of combinable crops and dry feed ingredients/materials in stores 1, 2 and 3.  The merchanting of combinable crops in bulk. The compliance of the Renewable Energy Directive (RED)."]
["MO124","James Mortimer Ltd","Unit 13, Pexton Road, Kelleythorpe Industrial Estate, , England, East Yorkshire, Driffield,YO25 9DJ","Unit 13, Pexton Road","Kelleythorpe Industrial Estate",null,"England","East Yorkshire","Driffield","YO25 9DJ","The haulage of bulk combinable crops, dry feed materials/ingredients, compound animal feeding stuffs and as grown cereal/herbage seed.\r\nThe storage and contractual testing of combinable crops, dry feed materials/ingredients in Intake bins 1 & 2 and Clean bins 1 & 2 & bin S1.\r\nThe operation of seed cleaning plant with screenings/rejects designated as animal feed materials.\r\nThe merchanting of combinable crops, dry feed materials/ingredients and compound animal feeds."]
["YY653","John Aprahamian & Co Ltd","Walnut Farm, Church Street, Blakesley, England, Northants, Towcester,NN12 8RA","Walnut Farm","Church Street","Blakesley","England","Northants","Towcester","NN12 8RA","The merchanting of combinable crops in bulk."]
["VE019","John Vergette Ltd","Lindens Farm, Riby, , England, North East Lincolnshire, Grimsby,DN37 8NQ","Lindens Farm","Riby",null,"England","North East Lincolnshire","Grimsby","DN37 8NQ","The haulage of combinable crops, dry feed materials/ingredients, compound animal feeding stuffs and as grown cereal/herbage seed.\r\nThe storage, drying, cleaning and contractual testing of combinable crops, dry feed materials/ingredients in stores B1 & B2, silos 1 & 2 and bins 1-14.\r\nThe merchanting of combinable crops in bulk.\r\nThe operation of seed cleaning plant with screenings/rejects designated as animal feed materials.\r\n The compliance of the Renewable Energy Directive (RED)"]
["XX368","Johnson & Saunt Ltd","Southside, Albert Dock, , England, , Hull,HU1 2DS","Southside","Albert Dock",null,"England",null,"Hull","HU1 2DS","The haulage of bulk combinable crops, dry feed materials/ingredients, compound animal feeding stuffs and as grown cereal/herbage seed. The storage, drying, cleaning and contractual testing of combinable crops and dry feed materials in sheds 1, 1A, 1B, 2-8, plus 1 wet holding silo and temporary holding area. The provision of loading and unloading of food and feed materials at Albert Dock, Hull and storage in store J. The merchanting of combinable crops in bulk. The compliance of the Renewable Energy Directive (RED)."]
["XX368","Johnson & Saunt Ltd","Stockdale Farm, Daisy Hill Road, Burstwick, England, East Yorkshire, Hull,HU12 9HD","Stockdale Farm","Daisy Hill Road","Burstwick","England","East Yorkshire","Hull","HU12 9HD","The haulage of bulk combinable crops, dry feed materials/ingredients, compound animal feeding stuffs and as grown cereal/herbage seed. The storage, drying, cleaning and contractual testing of combinable crops and dry feed materials in sheds 1, 1A, 1B, 2-8, plus 1 wet holding silo and temporary holding area. The provision of loading and unloading of food and feed materials at Albert Dock, Hull and storage in store J. The merchanting of combinable crops in bulk. The compliance of the Renewable Energy Directive (RED)."]
["YY2468","KWS UK Ltd","56 Church Street, Thriplow, , England, Hertfordshire, Nr Royston,SG8 7RE","56 Church Street","Thriplow",null,"England","Hertfordshire","Nr Royston","SG8 7RE","The merchanting  and storage of combinable crops, dry feed materials/ingredients. Storage in 3 steel silos and covered wooden boxes."]
["YY2468","KWS UK Ltd","Gravel Pit Hill, , Thriplow, England, Herts, Royston,SG8 7HZ","Gravel Pit Hill",null,"Thriplow","England","Herts","Royston","SG8 7HZ","The merchanting  and storage of combinable crops, dry feed materials/ingredients. Storage in 3 steel silos and covered wooden boxes."]
["XX100","Mark Lawrence (Grain) Ltd","Station Maltings, , , England, Essex, Witham,CM8 2DU","Station Maltings",null,null,"England","Essex","Witham","CM8 2DU","The merchanting of bulk combinable crops."]
["YY2470","MI-Grains Ltd","31b Tywarnhayle Road, , , England, Cornwall, Perranporth,TR6 ODX","31b Tywarnhayle Road",null,null,"England","Cornwall","Perranporth","TR6 ODX","The merchanting of combinable crops in bulk."]
["XX245","Mid England Agriculture Ltd","Hopyard Farm, Lubbesthorpe, , England, Leicestershire, Enderby,LE19 4AZ","Hopyard Farm","Lubbesthorpe",null,"England","Leicestershire","Enderby","LE19 4AZ","The merchanting of combinable crops in bulk.\r\nThe compliance of the Renewable Energy Directive (RED)"]
["XX495","Newtown Store Ltd","Salisbury Road, Shalbourne, , England, Wiltshire, Marlborough,SN8 3RP","Salisbury Road","Shalbourne",null,"England","Wiltshire","Marlborough","SN8 3RP","The merchanting, storage, drying, cleaning and contractual testing of combinable crops.\r\nStorage facilities; Wood Shed , Main Shed Bays 1-5, Duck Shed, Beef Unit and Bins 1 - 13 and temporary holding pad."]
["JE029","OC Jewers & Sons Ltd","New Granaries, Elmswell Road, , England, Suffolk, Woolpit,IP30 9RH","New Granaries","Elmswell Road",null,"England","Suffolk","Woolpit","IP30 9RH","The haulage of bulk combinable crops, dry feed materials/ingredients, compound animal feeding stuffs and as grown cereal/herbage seed.\r\nThe merchanting of combinable crops in bulk.\r\nThe storage, cleaning, drying and contractual testing of combinable crops, dry feed materials/ingredients including moisture, bushel weight, protein and nitrogen in flat stores 1, 2, 3, 4, 5, 6 & 7 and stores 8, 9a, 9b, 9c."]
["SO093/AM","Openfield Agriculture","Barrow Hill Barn, Barrow Hill,, Goodworth Clatford, England, Hampshire, Andover,SP11 7RG","Barrow Hill Barn","Barrow Hill,","Goodworth Clatford","England","Hampshire","Andover","SP11 7RG","The merchanting of combinable crops in bulk."]
["SO093/AM","Openfield Agriculture","Combwich Road, Cannington, , England, Somerset, Bridgwater,TA5 2PL","Combwich Road","Cannington",null,"England","Somerset","Bridgwater","TA5 2PL","The merchanting of combinable crops."]
["SO093/AM","Openfield Agriculture","Honey Pot Lane, Colsterworth, , England, Lincolnshire, Grantham,NG33 5LY","Honey Pot Lane","Colsterworth",null,"England","Lincolnshire","Grantham","NG33 5LY","The haulage, merchanting, storage, drying, cleaning and contractual testing of combinable crops, storage in Silos 1-18, Store 3, 10 wet bins & 3 outloading bins.\r\nThe provision of the proficiency testing scheme.\r\nThe compliance of the Renewable Energy Directive (RED)."]
["YY520","Organic Arable","New Gant Farm, , , England, Cambridgeshire, Swaffham Prior,CB25 0LQ","New Gant Farm",null,null,"England","Cambridgeshire","Swaffham Prior","CB25 0LQ","The merchanting of combinable crops in bulk."]
["YY314","Paul Toseland (Grain) Ltd","69 Abbey Road, , , England, Lincolnshire, Bourne,PE10 9EN","69 Abbey Road",null,null,"England","Lincolnshire","Bourne","PE10 9EN","The merchanting of combinable crops in bulk.  The compliance of the Renewable Energy Directive (RED)"]
["YY074","Paul Towns Agriculture Ltd  (Incorporating Towns Agriculture Ltd)","Agriculture House, Scalford Station, , England, Leicestershire, Melton Mowbray,LE14 4UD","Agriculture House","Scalford Station",null,"England","Leicestershire","Melton Mowbray","LE14 4UD","The merchanting and storage of bulk combinable crops, Store 1 & 2 including temporary holding pad. The compliance of the Renewable Energy Directive (RED)"]
["YY153","Peters Commodities Limited","2 Pine House, Southend Office Village,, Candlers Way, England, Essex, Southend on Sea,SS2 5SE","2 Pine House","Southend Office Village,","Candlers Way","England","Essex","Southend on Sea","SS2 5SE","The merchanting of bulk combinable crops."]
["YY523","PRAG Ltd","Mountain Farm, Broadway, , Wales, Pembrokeshire, Haverfordwest,SA62 3HU","Mountain Farm","Broadway",null,"Wales","Pembrokeshire","Haverfordwest","SA62 3HU","The merchanting of combinable crops in bulk."]
["YY1068","Ringlink Scotland Ltd","Cargill Centre, Business Park, Aberdeen Park, Scotland, , Laurencekirk,AB30 1EY","Cargill Centre","Business Park","Aberdeen Park","Scotland",null,"Laurencekirk","AB30 1EY","The facilitating and administration of members and growers for combinable crops in bulk."]
["XX402","Robert Bellairs (Grain) Ltd","The Old Saddlery, Main Street, Woodnewton, England, Cambridgeshire, Peterborough,PE8 5EB","The Old Saddlery","Main Street","Woodnewton","England","Cambridgeshire","Peterborough","PE8 5EB","The merchanting of combinable crops in bulk."]
["YY1997","Robertson Crop Services ( a trading division of PRO Cam CP Ltd)","Chapel Road, Cuminestown Industrial Estate, Cuminestown, Scotland, Aberdeenshire, Turriff,AB53 5ZA","Chapel Road","Cuminestown Industrial Estate","Cuminestown","Scotland","Aberdeenshire","Turriff","AB53 5ZA","The merchanting of bulk combinable crops."]
["AP007","Robin Appel Ltd","Church Court, Clewers Hill, , England, Hampshire, Waltham Chase,SO32 2LN","Church Court","Clewers Hill",null,"England","Hampshire","Waltham Chase","SO32 2LN","The haulage of bulk combinable crops, dry feed materials/ingredients and compound animal feeding stuffs.\r\nThe contractual testing of combinable crops, dry feed materials/ingredients.\r\nThe merchanting of combinable crops in bulk including a subcontracted store at FS Brettell, Smethcote Manor.\r\nCompliance with the Renewable Energy Directive (RED)."]
["YY649","Salisbury Cereals Ltd","East Farm, Codford, , , Wiltshire, WARMINSTER,BA12 0PJ","East Farm","Codford",null,null,"Wiltshire","WARMINSTER","BA12 0PJ","The merchanting of combinable crops in bulk."]
["AN14X","Scotgrain Agriculture Ltd","Elliot Industrial Estate, , , Scotland, Tayside, Arbroath,DD11 2NJ","Elliot Industrial Estate",null,null,"Scotland","Tayside","Arbroath","DD11 2NJ","The merchanting of combinable crops in bulk.\r\nThe compliance of the Renewable Energy Directive (RED)"]
["MC16X","Simpsons Malt Limited (including McCreath Simpson & Prentice and John Guthrie, trading divisions)","Tweed Valley Maltings, Tweedside Trading Estate, Ord Road, England, Northumberland, Berwick upon Tweed,TD15 2UZ","Tweed Valley Maltings","Tweedside Trading Estate","Ord Road","England","Northumberland","Berwick upon Tweed","TD15 2UZ","The merchanting of combinable crops.\r\nThe haulage, storage, drying, cleaning and contractual testing of combinable crops, dry feed materials/ingredients. \r\nStorage in Bays 8a, 8b & 9 -12, Silos 1 -19 & 21 -24, Glencore Bays G0B7, New Silos 1 â€“ 8 and shed 14.\r\nThe haulage of moist feed co-products.\r\nThe compliance of the Renewable Energy Directive (RED)"]
["YY2456","Soya UK Ltd","Longways House, Burnetts Lane, West End, England, Hampshire, Southampton,SO30 2HH","Longways House","Burnetts Lane","West End","England","Hampshire","Southampton","SO30 2HH","The merchanting of combinable crops in bulk."]
["XY426","Strathmore Agribusiness","The Bothy, West Grange of Conon, , Scotland, Tayside, Arbroath,DD11 3SD","The Bothy","West Grange of Conon",null,"Scotland","Tayside","Arbroath","DD11 3SD","The merchanting of combinable crops in bulk, compound feeds and assured feed materials."]
["YY2230","T Denne & Sons","Whitehill Grain Store, Whitehill,, Bilting, England, Kent, Ashford,TN25 4HB","Whitehill Grain Store","Whitehill,","Bilting","England","Kent","Ashford","TN25 4HB","The haulage, storage, drying, cleaning, contractual  testing and merchanting of bulk combinable crops, dry feed materials/ingredients, compound animal feeding stuffs and as-grown cereal/herbage seed. Storage in flat stores 1-5. Silos A, F, G, H, J, K, L, M, R, S, T, V & W."]
["YY1375","Thomas Bell & Sons Ltd T/A Transfert","PO Box 5, Bigby Road, , England, North Lincolnshire, Brigg,DN20 8RA","PO Box 5","Bigby Road",null,"England","North Lincolnshire","Brigg","DN20 8RA","The merchanting of combinable crops in bulk including the compliance of the Renewable Energy Directive (RED)."]
["YY610","Trevor Cope Seeds Limited (Trading as Cope Seeds & Grain)","Highgate Barns, Helpringham Road, , England, Lincolnshire, Scredington,NG34 0BW","Highgate Barns","Helpringham Road",null,"England","Lincolnshire","Scredington","NG34 0BW","The merchanting of combinable crops in bulk."]
["CH091","W A Church (Bures) Ltd","High Street, , , England, Suffolk, Bures,CO8 5JQ","High Street",null,null,"England","Suffolk","Bures","CO8 5JQ","The merchanting of combinable crops in bulk."]
["YY2281","Walnes Ltd","Moat Farm, Moat Park, Earl Soham, England, Suffolk, Woodbridge,IP13 7SR","Moat Farm","Moat Park","Earl Soham","England","Suffolk","Woodbridge","IP13 7SR","The storage and merchanting of combinable crops in bulk. Storage in Intake Bins 1, 2, 3, & 4 and outloading Bins 1, 2, 3, 4 & 5."]
["YY2739","Warden Agri Ltd","Midville Grange Farm, , , , Licolnshire, MIDVILLE,PE22 8HQ","Midville Grange Farm",null,null,null,"Licolnshire","MIDVILLE","PE22 8HQ","The merchanting and storage of combinable crops, dry feed materials/ingredients. Storage in bays 1 & 2 at Midville Grange Farm."]
["WE406","Western Arable Services Ltd  Incorporating Abbey Cereals","Lassington Lane, , , , Gloucestershire, HIGNAM,GL2 8DH","Lassington Lane",null,null,null,"Gloucestershire","HIGNAM","GL2 8DH","The merchanting of combinable crops in bulk. The storage and contractual testing of combinable crops for moisture, specific weight, admix and protein. storage at The Grainstore at Elmstone Hardwicke in stores 1-8 including temporary holding pad and at Astman's Farm store 1. The compliance of the Renewable Energy Directive (RED)"]
["WE406","Western Arable Services Ltd  Incorporating Abbey Cereals","The Grain Store, Cursey Lane, Elmstone Hardwicke, England, Gloucestershire, Cheltenham,GL51 9TF","The Grain Store","Cursey Lane","Elmstone Hardwicke","England","Gloucestershire","Cheltenham","GL51 9TF","The merchanting of combinable crops in bulk. The storage and contractual testing of combinable crops for moisture, specific weight, admix and protein. storage at The Grainstore at Elmstone Hardwicke in stores 1-8 including temporary holding pad and at Astman's Farm store 1. The compliance of the Renewable Energy Directive (RED)"]
["XY869","Weston Mill Farming Company (incorporating J S Dakin & Co)","Weston Mill Farm, North Road, Sutton-on-Trent, England, Nottinghamshire, Newark,NG23 6TS","Weston Mill Farm","North Road","Sutton-on-Trent","England","Nottinghamshire","Newark","NG23 6TS","The haulage, storage, drying, cleaning, contractual testing and merchanting of bulk combinable crops, dry feed materials/ingredients, compound animal feeding stuffs and as-grown cereal/herbage seeds in Sheds 1-8."]
["WH00X","Wherry & Sons Ltd","The Old School, High Street, Rippingale, England, Lincolnshire, Bourne,PE10 0SR","The Old School","High Street","Rippingale","England","Lincolnshire","Bourne","PE10 0SR","The contractual testing and merchanting of combinable crops in bulk."]
["YY462","Woldgrain Storage Ltd",", Hemswell Airfield, Hemswell Cliff, England, Lincolnshire, Gainsborough,DN21 5TJ",null,"Hemswell Airfield","Hemswell Cliff","England","Lincolnshire","Gainsborough","DN21 5TJ","The storage, drying, cleaning, contractual testing and merchanting of combinable crops in silos A1-A6, B1-B6, C1-C8, D1-D7, E1-E4, F1-F8, G1-G5 & H1-H5, J1-J5, K1, K2, K4, K5. The brokerage of haulage."]
["YY1489","Yorkshire Grain Ltd","Knaresborough House, High Street, , , North Yorkshire, KNARESBOROUGH,HG5 0HL","Knaresborough House","High Street",null,null,"North Yorkshire","KNARESBOROUGH","HG5 0HL","The merchanting of combinable crops in bulk. The compliance of the Renewable Energy Directive (RED)"]
["YY1489","Yorkshire Grain Ltd","Unit 13, Pexton Road, Kelleythorpe Ind Est, , , DRIFFIELD,YO25 9DJ","Unit 13","Pexton Road","Kelleythorpe Ind Est",null,null,"DRIFFIELD","YO25 9DJ","The merchanting of combinable crops in bulk. The compliance of the Renewable Energy Directive (RED)"]
["YY1489","Yorkshire Grain Ltd","Pexton Road, Kelleythorpe Ind Est, , , DRIFFIELD, YO25 9DJ,Merchanting","Pexton Road","Kelleythorpe Ind Est",null,null,"DRIFFIELD","YO25 9DJ","Merchanting","Unit 13"]